[Event "VII Lorca Open 2018"]
[Site "Lorca"]
[Date "2018.12.26"]
[Round "1"]
[White "Vazquez Igarza, Renier"]
[Black "Garrido Outon, Alex"]
[Result "1-0"]
[ECO "E94"]
[WhiteElo "2570"]
[BlackElo "2097"]
[Annotator "ChessBase"]
[PlyCount "96"]
[EventDate "2018.12.26"]
[EventType "swiss"]
[EventCountry "ESP"]
[SourceTitle "playchess.com"]
[Source "ChessBase"]
[SourceQuality "1"]
[TimeControl "5400+30"]

1. d4 {[%emt 0:00:00]} Nf6 {[%emt 0:00:00]} 2. c4 {[%emt 0:00:00]} g6 {[%emt 0:00:00]} 3. Nc3 {[%emt 0:02:20]} Bg7 {[%emt 0:00:11]} 4. e4 {[%emt 0:00:57]} d6 {[%emt 0:00:10]} 5. Nf3 {[%emt 0:01:45]} O-O {[%emt 0:00:09]} 6. Be2 {[%emt 0:00:02]} e5 {[%emt 0:00:12]} 7. Be3 {[%emt 0:00:02]} Na6 {[%emt 0:01:05]} 8. O-O {[%emt 0:00:25]} Ng4 {[%emt 0:00:20]} 9. Bg5 {[%emt 0:00:02]} Qe8 {[%emt 0:00:17]} 10. dxe5 {[%emt 0:00:31]} dxe5 {[%emt 0:00:03]} 11. Qc1 {[%emt 0:00:39]} h6 {[%emt 0:11:43]} 12. Bd2 {[%emt 0:00:27]} Kh7 {[%emt 0:02:06]} 13. h3 {[%emt 0:00:51]} Nf6 {[%emt 0:00:03]} 14. Be3 {[%emt 0:00:22]} Qe7 {[%emt 0:01:00]} 15. Nd5 {[%emt 0:00:56]} Qd8 {[%emt 0:00:15]} 16. Nxf6+ {[%emt 0:03:21]} Qxf6 {[%emt 0:00:17]} 17. c5 {[%emt 0:01:59]} Nb4 {[%emt 0:01:08]} 18. Rd1 {[%emt 0:01:18]} Qe7 {[%emt 0:08:11]} 19. c6 {[%emt 0:02:16]} Nxc6 {[%emt 0:03:47]} 20. Bc5 {[%emt 0:00:12]} Qf6 {[%emt 0:00:05]} 21. Bxf8 {[%emt 0:00:29]} Bxf8 {[%emt 0:00:03]} 22. Bb5 {[%emt 0:03:14]} Bd6 {[%emt 0:14:40]} 23. Bxc6 {[%emt 0:00:58]} bxc6 24. Qxc6 {[%emt 0:01:38]} Rb8 {[%emt 0:02:16]} 25. Qc3 {[%emt 0:04:56]} g5 {[%emt 0:04:36]} 26. Rxd6 {[%emt 0:01:34]} cxd6 {[%emt 0:04:02]} 27. Qc7 {[%emt 0:00:02]} Ra8 {[%emt 0:00:22]} 28. Nh2 {[%emt 0:09:23]} Be6 {[%emt 0:07:30]} 29. Qxd6 {[%emt 0:11:59]} Rd8 {[%emt 0:02:50]} 30. Qc5 {[%emt 0:00:25]} Qf4 {[%emt 0:10:58]} 31. Nf3 {[%emt 0:01:47]} Qxe4 {[%emt 0:03:13]} 32. Qxa7 {[%emt 0:04:52]} g4 {[%emt 0:02:21]} 33. Re1 {[%emt 0:03:10]} Qf4 {[%emt 0:04:22]} 34. hxg4 {[%emt 0:00:33]} e4 {[%emt 0:01:07]} 35. Nd4 {[%emt 0:08:26]} Bd5 {[%emt 0:07:35]} 36. Nf5 {[%emt 0:03:11]} Rg8 {[%emt 0:02:05]} 37. Qd4 {[%emt 0:12:47]} Bxa2 {[%emt 0:01:26]} 38. Rxe4 {[%emt 0:00:36]} Qc1+ {[%emt 0:00:20]} 39. Kh2 {[%emt 0:00:02]} Be6 {[%emt 0:01:26]} 40. Qe3 {[%emt 0:03:19]} Qc7+ {[%emt 0:01:27]} 41. Qf4 {[%emt 0:00:10]} Qxf4+ {[%emt 0:00:03]} 42. Rxf4 {[%emt 0:00:06]} Rb8 {[%emt 0:00:08]} 43. b4 {[%emt 0:00:12]} Bxf5 {[%emt 0:00:48]} 44. gxf5 {[%emt 0:02:35]} h5 {[%emt 0:01:11]} 45. Kg3 {[%emt 0:00:39]} Kh6 {[%emt 0:00:12]} 46. Kf3 {[%emt 0:01:35]} Kg5 {[%emt 0:00:26]} 47. g3 {[%emt 0:00:27]} f6 {[%emt 0:00:58]} 48. Ke3 {[%emt 0:00:21]} Re8+ {[%emt 0:00:48] Ke4 [%clk 0:00:00]} 1-0

[Event "VII Lorca Open 2018"]
[Site "Lorca"]
[Date "2018.12.26"]
[Round "1"]
[White "Gascon Del Nogal, Jose Rafael"]
[Black "Fernandez Garcia, Gumersindo"]
[Result "1-0"]
[ECO "B20"]
[WhiteElo "2484"]
[BlackElo "2049"]
[Annotator "RC"]
[PlyCount "65"]
[EventDate "2018.12.26"]
[EventType "swiss"]
[EventCountry "ESP"]
[SourceTitle "playchess.com"]
[Source "ChessBase"]
[SourceQuality "1"]
[TimeControl "5400+30"]

1. e4 {[%emt 0:00:00]} c5 {[%emt 0:00:00]} 2. Ne2 {[%emt 0:00:00]} d6 {[%emt 0:00:10]} 3. g3 {[%emt 0:00:00]} g6 {[%emt 0:00:21]} 4. Bg2 {[%emt 0:00:00]} Bg7 {[%emt 0:00:05]} 5. c3 {[%emt 0:00:00]} Nc6 {[%emt 0:01:50]} 6. d4 {[%emt 0:00:18]} cxd4 {[%emt 0:01:29]} 7. cxd4 {[%emt 0:00:21]} e5 {[%emt 0:05:29]} 8. d5 {[%emt 0:01:12]} Nd4 {[%emt 0:06:14]} 9. Nxd4 {[%emt 0:00:37]} exd4 {[%emt 0:00:05]} 10. O-O {[%emt 0:00:08]} Ne7 {[%emt 0:02:34]} 11. Nd2 {[%emt 0:04:46]} O-O {[%emt 0:06:01]} 12. Nb3 {[%emt 0:00:18]} Qb6 {[%emt 0:00:42]} 13. Bg5 {[%emt 0:00:14]} Re8 {[%emt 0:02:45]} 14. Qd2 {[%emt 0:04:57]} Bd7 {[%emt 0:04:35]} 15. h4 {[%emt 0:04:47]} a5 {[%emt 0:13:49]} 16. Rfd1 {[%emt 0:00:45]} Ba4 {[%emt 0:02:10]} 17. Bh3 {[%emt 0:04:59]} Nc8 {[%emt 0:13:29]} 18. Rac1 {[%emt 0:01:03]} Na7 {[%emt 0:01:40]} 19. Re1 {[%emt 0:01:18]} Bxb3 {[%emt 0:15:19]} 20. axb3 {[%emt 0:00:02]} Qxb3 {[%emt 0:02:55]} 21. Bd7 {[%emt 0:05:13]} Reb8 {[%emt 0:00:07]} 22. h5 {[%emt 0:17:40]} a4 {[%emt 0:03:35]} 23. Rc7 {[%emt 0:11:31]} Qb6 {[%emt 0:08:46]} 24. Rc4 {[%emt 0:02:30]} d3 {[%emt 0:03:03]} 25. h6 {[%emt 0:03:32]} Bxb2 {[%emt 0:02:16]} 26. Rb4 {[%emt 0:00:08]} Qxb4 {[%emt 0:02:25]} 27. Qxb4 {[%emt 0:00:05]} a3 {[%emt 0:00:04]} 28. Qxd6 {[%emt 0:00:21]} Nc8 {[%emt 0:00:32]} 29. Qf4 {[%emt 0:01:29]} a2 {[%emt 0:01:15]} 30. e5 {[%emt 0:04:06]} d2 {[%emt 0:00:16]} 31. Qf6 {[%emt 0:01:44]} dxe1=Q+ {[%emt 0:00:15]} 32. Kg2 {[%emt 0:00:06]} Qe4+ {[%emt 0:01:08]} 33. Kh2 {[%emt 0:00:07]} 1-0

[Event "VII Lorca Open 2018"]
[Site "Lorca"]
[Date "2018.12.26"]
[Round "1"]
[White "Franco Ocampos, Zenon"]
[Black "Sobrino Forte, Alvaro"]
[Result "1-0"]
[ECO "A13"]
[WhiteElo "2477"]
[BlackElo "2040"]
[Annotator "RC"]
[PlyCount "135"]
[EventDate "2018.12.26"]
[EventType "swiss"]
[EventCountry "ESP"]
[SourceTitle "playchess.com"]
[Source "ChessBase"]
[SourceQuality "1"]
[TimeControl "5400+30"]

1. c4 {[%emt 0:00:00]} Nf6 {[%emt 0:00:00]} 2. Nc3 {[%emt 0:00:30]} e6 {[%emt 0:00:30]} 3. Nf3 {[%emt 0:00:30]} d5 {[%emt 0:00:30]} 4. e3 {[%emt 0:00:30]} c5 {[%emt 0:01:23]} 5. d4 {[%emt 0:00:06]} Nc6 {[%emt 0:00:30]} 6. cxd5 {[%emt 0:00:16]} exd5 {[%emt 0:00:44]} 7. Be2 {[%emt 0:00:06]} Be7 {[%emt 0:01:06]} 8. O-O {[%emt 0:00:07]} O-O {[%emt 0:00:04]} 9. b3 {[%emt 0:00:17]} Bg4 {[%emt 0:03:58]} 10. Bb2 {[%emt 0:00:15]} Qd7 {[%emt 0:06:56]} 11. Rc1 {[%emt 0:00:52]} cxd4 {[%emt 0:07:44]} 12. Nxd4 {[%emt 0:00:09]} Bxe2 {[%emt 0:11:16]} 13. Ncxe2 {[%emt 0:00:11]} Ne4 {[%emt 0:02:34]} 14. Nxc6 bxc6 {[%emt 0:00:14]} 15. Qc2 {[%emt 0:04:23]} Rac8 {[%emt 0:02:20]} 16. Rfd1 {[%emt 0:00:10]} Rfd8 {[%emt 0:03:13]} 17. Nf4 {[%emt 0:02:26]} Qf5 {[%emt 0:12:17]} 18. f3 {[%emt 0:06:11]} Nd6 {[%emt 0:00:05]} 19. Bd4 {[%emt 0:00:29]} Qxc2 {[%emt 0:04:02]} 20. Rxc2 {[%emt 0:00:03]} Nb5 {[%emt 0:11:03]} 21. Bc5 {[%emt 0:00:57]} Bg5 {[%emt 0:05:26]} 22. Ne2 {[%emt 0:05:42]} a6 {[%emt 0:05:18]} 23. Kf2 {[%emt 0:00:38]} Re8 {[%emt 0:00:33]} 24. Rd3 {[%emt 0:00:35]} Bf6 {[%emt 0:01:20]} 25. a4 {[%emt 0:03:08]} Nc7 {[%emt 0:00:10]} 26. Bd4 {[%emt 0:00:39]} Ne6 {[%emt 0:01:58]} 27. Bxf6 {[%emt 0:00:10]} gxf6 {[%emt 0:00:02]} 28. Nd4 {[%emt 0:00:40]} Nxd4 {[%emt 0:01:30]} 29. Rxd4 {[%emt 0:00:15]} Kf8 {[%emt 0:04:17]} 30. Rh4 {[%emt 0:04:58]} c5 {[%emt 0:01:39]} 31. Rxh7 {[%emt 0:00:19]} Ke7 {[%emt 0:00:59]} 32. Rh4 {[%emt 0:01:05]} a5 {[%emt 0:03:19]} 33. Rh5 {[%emt 0:04:11]} Kd6 {[%emt 0:02:14]} 34. Rf5 {[%emt 0:02:09]} Ke6 {[%emt 0:02:20]} 35. e4 {[%emt 0:01:02]} Red8 {[%emt 0:00:04]} 36. Ke2 {[%emt 0:08:53]} Rd6 {[%emt 0:03:02]} 37. Rxd5 {[%emt 0:02:38]} Rxd5 {[%emt 0:00:04]} 38. exd5+ {[%emt 0:00:04]} Kxd5 {[%emt 0:00:01]} 39. Rd2+ {[%emt 0:00:18]} Ke6 {[%emt 0:01:21]} 40. Kd3 {[%emt 0:00:14]} Rd8+ {[%emt 0:00:35]} 41. Kc3 {[%emt 0:00:08]} Rb8 {[%emt 0:00:14]} 42. Rd3 {[%emt 0:01:16]} Rb4 {[%emt 0:00:13]} 43. Rd8 {[%emt 0:00:11]} c4 {[%emt 0:00:20]} 44. bxc4 {[%emt 0:00:41]} Rxa4 {[%emt 0:00:05]} 45. c5 {[%emt 0:01:37]} Ra1 {[%emt 0:00:20]} 46. Rd2 {[%emt 0:01:51]} Rc1+ {[%emt 0:02:37]} 47. Rc2 {[%emt 0:00:05]} Rd1 {[%emt 0:00:02]} 48. c6 {[%emt 0:00:31]} Rd5 {[%emt 0:01:51]} 49. c7 {[%emt 0:01:21]} Kd7 {[%emt 0:00:12]} 50. Rd2 {[%emt 0:00:45]} Rxd2 {[%emt 0:00:06]} 51. Kxd2 {[%emt 0:00:02]} Kxc7 {[%emt 0:00:05]} 52. h4 {[%emt 0:00:37]} Kd7 {[%emt 0:01:05]} 53. Kc3 {[%emt 0:00:49]} f5 {[%emt 0:01:29]} 54. f4 {[%emt 0:00:03]} Ke6 {[%emt 0:00:22]} 55. Kb3 {[%emt 0:00:05]} Kf6 {[%emt 0:00:23]} 56. Ka4 {[%emt 0:00:06]} Kg6 {[%emt 0:00:15]} 57. Kxa5 {[%emt 0:00:05]} Kh5 {[%emt 0:00:09]} 58. g3 {[%emt 0:00:04]} Kg4 {[%emt 0:01:41]} 59. Kb6 {[%emt 0:00:04]} Kxg3 {[%emt 0:00:19]} 60. h5 {[%emt 0:00:07]} Kxf4 {[%emt 0:00:03]} 61. h6 {[%emt 0:00:32]} Kg3 {[%emt 0:00:22]} 62. h7 {[%emt 0:00:08]} f4 {[%emt 0:00:02]} 63. h8=Q {[%emt 0:00:05]} f3 {[%emt 0:00:57]} 64. Qg7+ {[%emt 0:00:10]} Kf2 {[%emt 0:01:27]} 65. Qxf7 {[%emt 0:00:06]} Ke3 {[%emt 0:00:29]} 66. Qc4 {[%emt 0:00:31]} Kf2 {[%emt 0:00:12]} 67. Qe4 {[%emt 0:00:13]} Kg3 {[%emt 0:00:20]} 68. Kc5 {[%emt 0:00:08]} 1-0

[Event "VII Lorca Open 2018"]
[Site "Lorca"]
[Date "2018.12.26"]
[Round "1"]
[White "Alshameary Puente, Ismael"]
[Black "Perez Guerra, Raul"]
[Result "0-1"]
[ECO "D07"]
[WhiteElo "2444"]
[BlackElo "2021"]
[Annotator "RC"]
[PlyCount "92"]
[EventDate "2018.12.26"]
[EventType "swiss"]
[EventCountry "ESP"]
[SourceTitle "playchess.com"]
[Source "ChessBase"]
[SourceQuality "1"]
[TimeControl "5400+30"]

1. d4 {[%emt 0:00:00]} d5 {[%emt 0:00:00]} 2. c4 {[%emt 0:00:00]} Nc6 {[%emt 0:00:47]} 3. Nf3 {[%emt 0:00:47]} Bg4 {[%emt 0:00:32]} 4. Nc3 {[%emt 0:00:15]} e6 {[%emt 0:01:05]} 5. cxd5 {[%emt 0:00:22]} exd5 {[%emt 0:00:24]} 6. Qb3 {[%emt 0:01:25]} Bxf3 {[%emt 0:03:13]} 7. exf3 {[%emt 0:00:19]} Nxd4 {[%emt 0:00:05]} 8. Qa4+ {[%emt 0:00:07]} Nc6 {[%emt 0:00:06]} 9. Ba6 {[%emt 0:00:12]} Qe7+ {[%emt 0:07:28]} 10. Kd1 {[%emt 0:02:42]} Qb4 {[%emt 0:00:22]} 11. Qxb4 {[%emt 0:25:21]} Nxb4 {[%emt 0:00:46]} 12. Bxb7 {[%emt 0:00:15]} Rb8 {[%emt 0:01:12]} 13. a3 {[%emt 0:00:38]} Rxb7 {[%emt 0:08:22]} 14. axb4 {[%emt 0:00:06]} d4 {[%emt 0:00:21]} 15. Ne2 {[%emt 0:04:38]} Bxb4 {[%emt 0:03:27]} 16. Nxd4 {[%emt 0:00:23]} Bc5 {[%emt 0:00:20]} 17. Re1+ {[%emt 0:00:19]} Kd7 {[%emt 0:00:16]} 18. Ra5 {[%emt 0:00:21]} Bd6 {[%emt 0:05:46]} 19. Nf5 {[%emt 0:15:01]} Ne7 {[%emt 0:03:20]} 20. Re4 {[%emt 0:02:39]} Nxf5 {[%emt 0:05:45]} 21. Rxf5 {[%emt 0:00:06]} f6 {[%emt 0:00:10]} 22. Rg4 {[%emt 0:01:34]} Ke6 {[%emt 0:00:04]} 23. Ra5 {[%emt 0:00:09]} g6 {[%emt 0:01:50]} 24. h4 {[%emt 0:00:22]} Be5 {[%emt 0:04:07]} 25. Kc2 {[%emt 0:03:09]} Rhb8 {[%emt 0:00:29]} 26. Ra2 {[%emt 0:00:28]} c5 {[%emt 0:01:38]} 27. h5 {[%emt 0:10:12]} gxh5 {[%emt 0:04:22]} 28. Rh4 {[%emt 0:00:08]} Rg7 {[%emt 0:00:32]} 29. g3 {[%emt 0:03:14]} Bd4 {[%emt 0:00:39]} 30. Rh2 {[%emt 0:04:26]} h4 {[%emt 0:08:29]} 31. g4 {[%emt 0:00:28]} Kd5 {[%emt 0:02:23]} 32. Be3 {[%emt 0:01:51]} Re8 {[%emt 0:00:16]} 33. Kd3 {[%emt 0:04:54]} Rb7 {[%emt 0:01:23]} 34. Bxd4 {[%emt 0:00:14]} c4+ {[%emt 0:00:09]} 35. Kd2 {[%emt 0:00:04]} Kxd4 {[%emt 0:00:04]} 36. Rxh4 {[%emt 0:00:10]} Rxb2+ {[%emt 0:00:13]} 37. Rxb2 {[%emt 0:00:10]} c3+ {[%emt 0:00:03]} 38. Kc2 {[%emt 0:01:35]} Re2+ {[%emt 0:00:07]} 39. Kb1 {[%emt 0:00:32]} cxb2 {[%emt 0:38:55]} 40. Rxh7 {[%emt 0:00:22]} a5 {[%emt 0:00:00]} 41. Rb7 {[%emt 0:02:22]} Kc3 {[%emt 0:00:00]} 42. Ka2 {[%emt 0:00:22]} Rxf2 {[%emt 0:00:00]} 43. Rb6 {[%emt 0:00:39]} a4 {[%emt 0:00:00]} 44. Rxf6 {[%emt 0:03:07]} a3 {[%emt 0:00:00]} 45. Rc6+ {[%emt 0:02:04]} Kd2 {[%emt 0:00:00]} 46. Rd6+ {[%emt 0:00:31]} Kc1 {[%emt 0:00:00]} 0-1

[Event "VII Lorca Open 2018"]
[Site "Lorca"]
[Date "2018.12.26"]
[Round "1"]
[White "Tejedor Fuente, Enrique"]
[Black "Diaz Rodriguez, Jose Antonio"]
[Result "1-0"]
[ECO "B06"]
[WhiteElo "2428"]
[BlackElo "2014"]
[Annotator "RC"]
[PlyCount "61"]
[EventDate "2018.12.26"]
[EventType "swiss"]
[EventCountry "ESP"]
[SourceTitle "playchess.com"]
[Source "ChessBase"]
[SourceQuality "1"]
[TimeControl "5400+30"]

1. e4 {[%emt 0:00:00]} g6 {[%emt 0:00:00]} 2. d4 {[%emt 0:00:00]} Bg7 {[%emt 0:00:00]} 3. Nc3 {[%emt 0:00:54]} d6 {[%emt 0:00:09]} 4. Be3 {[%emt 0:01:01]} c6 {[%emt 0:01:23]} 5. Qd2 {[%emt 0:08:12]} Nd7 {[%emt 0:08:12]} 6. f4 {[%emt 0:06:37]} Ngf6 {[%emt 0:02:31]} 7. Nf3 {[%emt 0:01:16]} O-O {[%emt 0:00:29]} 8. e5 {[%emt 0:09:02]} Ne8 {[%emt 0:01:27]} 9. Bc4 {[%emt 0:05:53]} Nc7 {[%emt 0:06:48]} 10. O-O {[%emt 0:02:36]} b5 {[%emt 0:06:11]} 11. Bb3 {[%emt 0:07:41]} Nb6 {[%emt 0:05:28]} 12. Bf2 {[%emt 0:11:19]} Be6 {[%emt 0:06:13]} 13. Bxe6 {[%emt 0:04:37]} Nxe6 {[%emt 0:01:10]} 14. Rae1 {[%emt 0:02:48]} Nc4 {[%emt 0:05:58]} 15. Qc1 {[%emt 0:00:52]} Qa5 {[%emt 0:02:25]} 16. Bh4 {[%emt 0:03:19]} Rfe8 {[%emt 0:04:04]} 17. Ne4 {[%emt 0:04:56]} Qb6 {[%emt 0:21:29]} 18. Bf2 {[%emt 0:03:29]} Qc7 {[%emt 0:02:37]} 19. Bg3 {[%emt 0:04:36]} Rad8 {[%emt 0:04:14]} 20. c3 {[%emt 0:00:47]} Qd7 {[%emt 0:06:30]} 21. b3 {[%emt 0:00:41]} Nb6 {[%emt 0:00:26]} 22. exd6 {[%emt 0:00:17]} exd6 {[%emt 0:00:52]} 23. f5 {[%emt 0:00:03]} Nf8 {[%emt 0:02:40]} 24. Nxd6 {[%emt 0:03:09]} Rxe1 {[%emt 0:00:32]} 25. Rxe1 {[%emt 0:00:28]} gxf5 {[%emt 0:02:57]} 26. Nh4 {[%emt 0:02:31]} f4 {[%emt 0:01:37]} 27. Qxf4 {[%emt 0:02:13]} Ne6 {[%emt 0:00:41]} 28. Qg4 {[%emt 0:01:03]} h5 {[%emt 0:05:25]} 29. Qxh5 {[%emt 0:02:59]} Nd5 {[%emt 0:00:20]} 30. Nhf5 {[%emt 0:01:20]} Nxc3 {[%emt 0:01:18]} 31. Qg4 {[%emt 0:01:30]} 1-0

[Event "VII Lorca Open 2018"]
[Site "Lorca"]
[Date "2018.12.26"]
[Round "1"]
[White "Domingo Nunez, Alejandro"]
[Black "Bosch Jorda, Ricard"]
[Result "*"]
[ECO "B17"]
[WhiteElo "2404"]
[BlackElo "1967"]
[Annotator "RC"]
[PlyCount "37"]
[EventDate "2018.12.26"]
[EventType "swiss"]
[EventCountry "ESP"]
[SourceTitle "playchess.com"]
[Source "ChessBase"]
[SourceQuality "1"]
[TimeControl "5400+30"]

1. e4 {[%emt 0:00:00]} c6 {[%emt 0:00:32]} 2. Nf3 {[%emt 0:00:00]} d5 {[%emt 0:01:09]} 3. Nc3 {[%emt 0:00:00]} dxe4 {[%emt 0:09:58]} 4. Nxe4 {[%emt 0:00:09]} Nd7 {[%emt 0:00:35]} 5. d4 {[%emt 0:09:37]} Ndf6 {[%emt 0:03:46]} 6. Ng3 {[%emt 0:00:52]} e6 {[%emt 0:03:38]} 7. Bd3 {[%emt 0:00:25]} Bd6 {[%emt 0:01:07]} 8. Qe2 {[%emt 0:01:06]} h6 {[%emt 0:11:10]} 9. Nf5 {[%emt 0:05:57]} Kf8 {[%emt 0:08:08]} 10. Nxd6 {[%emt 0:00:13]} Qxd6 {[%emt 0:00:02]} 11. c3 {[%emt 0:06:59]} Ne7 {[%emt 0:03:47]} 12. O-O {[%emt 0:04:57]} b6 {[%emt 0:08:13]} 13. Ne5 {[%emt 0:03:00]} Bb7 {[%emt 0:05:41]} 14. Bf4 {[%emt 0:00:18]} Qd8 {[%emt 0:02:56]} 15. Rad1 {[%emt 0:07:44]} g6 {[%emt 0:05:21]} 16. Rfe1 {[%emt 0:05:38]} Ned5 {[%emt 0:05:02]} 17. Bg3 {[%emt 0:03:02]} Kg7 {[%emt 0:00:50]} 18. c4 {[%emt 0:01:23]} Ne7 {[%emt 0:02:35]} 19. Nxf7 {[%emt 0:00:21]} *

[Event "VII Lorca Open 2018"]
[Site "Lorca"]
[Date "2018.12.26"]
[Round "1"]
[White "Diaz Mino, Pablo"]
[Black "Svetushkin, Dmitry"]
[Result "0-1"]
[ECO "E00"]
[WhiteElo "2101"]
[BlackElo "2592"]
[Annotator "RC"]
[PlyCount "79"]
[EventDate "2018.12.26"]
[EventType "swiss"]
[EventCountry "ESP"]
[SourceTitle "playchess.com"]
[Source "ChessBase"]
[SourceQuality "1"]
[TimeControl "5400+30"]

1. d4 {[%emt 0:00:00]} Nf6 {[%emt 0:00:00]} 2. c4 {[%emt 0:00:15]} e6 {[%emt 0:00:00]} 3. g3 {[%emt 0:00:33]} Bb4+ {[%emt 0:00:07]} 4. Bd2 {[%emt 0:01:27]} a5 {[%emt 0:00:27]} 5. Bg2 {[%emt 0:01:46]} d6 {[%emt 0:00:12]} 6. a3 {[%emt 0:04:02]} Bxd2+ {[%emt 0:00:08]} 7. Qxd2 {[%emt 0:00:13]} O-O {[%emt 0:00:20]} 8. Nf3 {[%emt 0:04:02]} Nbd7 {[%emt 0:01:59]} 9. O-O {[%emt 0:03:23]} e5 {[%emt 0:04:06]} 10. e3 {[%emt 0:05:01]} Re8 {[%emt 0:01:31]} 11. Nc3 {[%emt 0:01:34]} c6 {[%emt 0:00:08]} 12. Rfd1 {[%emt 0:07:14]} e4 {[%emt 0:00:55]} 13. Ng5 {[%emt 0:01:18]} d5 {[%emt 0:00:12]} 14. cxd5 {[%emt 0:01:49]} cxd5 {[%emt 0:00:08]} 15. Nh3 {[%emt 0:04:05]} Nb6 {[%emt 0:00:55]} 16. b3 {[%emt 0:02:05]} Bg4 {[%emt 0:11:28]} 17. Rdc1 {[%emt 0:02:44]} Qd7 {[%emt 0:00:15]} 18. Nf4 {[%emt 0:00:56]} g5 {[%emt 0:00:18]} 19. Nfe2 {[%emt 0:00:29]} h5 {[%emt 0:01:00]} 20. a4 {[%emt 0:04:15]} Re6 {[%emt 0:01:57]} 21. Nb5 {[%emt 0:05:05]} Rc6 {[%emt 0:00:42]} 22. Nec3 {[%emt 0:05:17]} Kg7 {[%emt 0:02:20]} 23. Rf1 {[%emt 0:10:53]} Bf3 {[%emt 0:00:38]} 24. h3 {[%emt 0:01:22]} h4 {[%emt 0:02:04]} 25. Kh2 {[%emt 0:15:49]} hxg3+ {[%emt 0:04:59]} 26. fxg3 {[%emt 0:00:14]} Rh8 {[%emt 0:00:22]} 27. Rae1 {[%emt 0:06:39]} Rcc8 {[%emt 0:14:36]} 28. Kg1 {[%emt 0:04:09]} Bxg2 {[%emt 0:01:04]} 29. Qxg2 {[%emt 0:00:16]} Rxh3 {[%emt 0:00:22]} 30. Nd6 {[%emt 0:04:08]} Rch8 {[%emt 0:02:36]} 31. Nf5+ {[%emt 0:01:01]} Kg6 {[%emt 0:00:12]} 32. Nb5 {[%emt 0:02:07]} Nc8 {[%emt 0:04:45]} 33. Rc1 {[%emt 0:01:02]} Ne7 {[%emt 0:00:11]} 34. Nxe7+ {[%emt 0:00:52]} Qxe7 {[%emt 0:00:07]} 35. Rc7 {[%emt 0:00:04]} Qe6 {[%emt 0:00:45]} 36. Rxb7 {[%emt 0:01:14]} Rh1+ {[%emt 0:00:25]} 37. Qxh1 {[%emt 0:00:15]} Rxh1+ {[%emt 0:00:06]} 38. Kxh1 {[%emt 0:00:04]} Qh3+ {[%emt 0:00:07]} 39. Kg1 {[%emt 0:00:08]} Qxg3+ {[%emt 0:00:04]} 40. Kh1 {[%emt 0:00:20]} 0-1

[Event "VII Lorca Open 2018"]
[Site "Lorca"]
[Date "2018.12.26"]
[Round "1"]
[White "Tubio Agrasar, Pablo"]
[Black "Ibarra Jerez, Jose Carlos"]
[Result "0-1"]
[ECO "B56"]
[WhiteElo "2088"]
[BlackElo "2558"]
[Annotator "RC"]
[PlyCount "52"]
[EventDate "2018.12.26"]
[EventType "swiss"]
[EventCountry "ESP"]
[SourceTitle "playchess.com"]
[Source "ChessBase"]
[SourceQuality "1"]
[TimeControl "5400+30"]

1. e4 {[%emt 0:00:00]} c5 {[%emt 0:00:00]} 2. Nc3 {[%emt 0:00:38]} a6 {[%emt 0:00:36]} 3. Nf3 {[%emt 0:01:33]} d6 {[%emt 0:03:11]} 4. d4 {[%emt 0:00:06]} cxd4 {[%emt 0:00:09]} 5. Nxd4 {[%emt 0:00:07]} Nf6 {[%emt 0:00:10]} 6. Be3 {[%emt 0:02:20]} Ng4 {[%emt 0:02:15]} 7. Bc1 {[%emt 0:00:56]} Nf6 {[%emt 0:01:57]} 8. Be3 {[%emt 0:00:48]} Ng4 {[%emt 0:01:47]} 9. Bc1 {[%emt 0:00:12]} Nc6 {[%emt 0:00:15]} 10. Nb3 {[%emt 0:11:56]} Nf6 {[%emt 0:11:55]} 11. Be2 {[%emt 0:04:13]} g6 {[%emt 0:01:18]} 12. Be3 {[%emt 0:04:40]} Bg7 {[%emt 0:01:38]} 13. h4 {[%emt 0:00:39]} h5 {[%emt 0:02:36]} 14. Qd2 {[%emt 0:04:02]} b5 {[%emt 0:04:28]} 15. f3 {[%emt 0:01:05]} b4 {[%emt 0:04:50]} 16. Nd5 Nxd5 {[%emt 0:02:05]} 17. Qxd5 {[%emt 0:07:29]} Qc7 {[%emt 0:14:29]} 18. Na5 {[%emt 0:28:08]} Bxb2 {[%emt 0:04:01]} 19. Rb1 {[%emt 0:05:22]} Bc3+ {[%emt 0:01:46]} 20. Bd2 {[%emt 0:01:28]} Nd4 {[%emt 0:17:35]} 21. Bc4 {[%emt 0:03:33]} Nxc2+ {[%emt 0:05:31]} 22. Kd1 {[%emt 0:07:11]} Na3 {[%emt 0:00:54]} 23. Qxf7+ {[%emt 0:01:49]} Kd8 {[%emt 0:00:44]} 24. Bg5 {[%emt 0:00:02]} Re8 {[%emt 0:02:15]} 25. Bd5 {[%emt 0:05:11]} Qxa5 {[%emt 0:01:00]} 26. Bxa8 {[%emt 0:00:59]} Nxb1 {[%emt 0:00:54]} 0-1